bitfinex/quotes_SOLUSD_20240530
["timestamp","ask_amount","ask_price","bid_price","bid_amount"]
[1717041231375,15.2222,170.15,170.0,6.5889]
[1717041231581,4.3496,170.13,170.01,7.47]
[1717041231884,4.3496,170.13,170.0,6.5889]
[1717041232091,4.3496,170.13,170.0,14.0589]
[1717041232385,4.3496,170.13,170.0,6.5889]
[1717041232560,2.1754,170.08,170.0,6.5889]
[1717041233369,2.1753,170.1,170.0,6.5889]
[1717041233570,2.1753,170.09,170.0,6.5889]
[1717041233773,2.1753,170.09,170.0,14.0589]
[1717041236288,2.1752,170.1,170.0,14.0589]
[1717041236471,2.1751,170.11,170.03,7.47]
[1717041237076,92.08739859,170.14,170.05,7.47]
[1717041237484,2.1749,170.13,170.04,7.47]
[1717041237681,92.08739859,170.14,170.03,7.47]
[1717041237682,2.175,170.12,170.03,7.47]
[1717041238499,2.1748,170.13,170.04,7.47]
[1717041238792,2.1748,170.13,170.05,7.47]
[1717041240094,2.1748,170.13,170.06,7.47]
[1717041240602,7.47,170.12,170.06,7.47]
[1717041241282,92.08739859,170.16,170.06,7.47]
[1717041241588,2.1747,170.14,170.06,7.47]
[1717041241772,2.1748,170.13,170.05,7.47]
[1717041242700,16.3299,170.17,170.04,17.69]
[1717041242999,7.47,170.19,170.09,7.47]
[1717041243174,2.1743,170.17,170.09,7.47]
[1717041243374,2.1744,170.16,170.08,7.47]
[1717041243884,2.1744,170.16,170.07,7.47]
[1717041244475,2.1744,170.16,170.08,7.47]
[1717041244682,2.1743,170.17,170.08,7.47]
[1717041245491,2.1742,170.18,170.08,9.6454]
[1717041245881,2.1742,170.18,170.09,7.47]
[1717041246079,2.1743,170.17,170.09,7.47]
[1717041246394,7.47,170.14,170.08,7.47]
[1717041249005,105.70187239,170.2,170.09,7.47]
[1717041249006,7.47,170.15,170.09,7.47]
[1717041249184,2.1742,170.18,170.09,7.47]
[1717041249385,7.47,170.15,170.09,7.47]
[1717041251790,2.1742,170.17,170.09,7.47]
[1717041251994,7.47,170.14,170.08,7.47]
[1717041252903,2.1742,170.17,170.08,7.47]
[1717041253088,7.47,170.19,170.08,9.6453]
[1717041253289,7.47,170.19,170.08,7.47]
[1717041253595,2.1743,170.17,170.08,7.47]
[1717041254196,2.1743,170.17,170.07,2.1755]
[1717041254402,2.1743,170.17,170.08,7.47]
[1717041254713,2.1743,170.17,170.09,7.47]
[1717041255015,2.1743,170.17,170.07,19.8655]
[1717041255196,2.1743,170.17,170.09,7.47]
[1717041255715,2.1744,170.16,170.08,7.47]
[1717041257095,2.1743,170.17,170.08,7.47]
[1717041257806,2.1743,170.17,170.07,2.1755]
[1717041258109,2.1743,170.17,170.09,7.47]
[1717041261922,98.23187239,170.2,170.07,19.8655]
[1717041261923,2.1742,170.18,170.1,7.47]
[1717041264305,2.1743,170.17,170.08,2.1754]
[1717041264513,2.1743,170.17,170.1,7.47]
[1717041266226,2.1744,170.16,170.07,19.8655]
[1717041266420,2.1744,170.16,170.1,7.47]
[1717041269430,2.1743,170.17,170.1,7.47]
[1717041275333,2.1744,170.16,170.07,19.8655]
[1717041275537,2.1744,170.16,170.1,7.47]
[1717041276437,2.1744,170.16,170.07,19.8655]
[1717041276637,2.1744,170.16,170.1,7.47]
[1717041280946,2.1742,170.18,170.1,7.47]
[1717041281241,80.82285874,170.2,170.1,7.47]
[1717041281745,57.59460874,170.2,170.1,7.47]
[1717041281930,2.1743,170.17,170.1,7.47]
[1717041283651,2.1743,170.17,170.11,7.47]
[1717041284833,2.1743,170.17,170.1,7.47]
[1717041285243,2.1744,170.16,170.08,17.69]
[1717041285432,2.1744,170.16,170.1,7.47]
[1717041290250,2.1746,170.15,170.08,7.47]
[1717041290729,2.1746,170.15,170.09,7.47]
[1717041291748,4.3482,170.19,170.09,7.47]
[1717041291749,2.1744,170.16,170.09,7.47]
[1717041296545,2.1743,170.17,170.09,7.47]
[1717041297055,2.1744,170.16,170.09,7.47]
[1717041301256,2.1744,170.16,170.07,2.1755]
[1717041301454,2.1744,170.16,170.09,7.47]
[1717041305334,2.1743,170.17,170.09,7.47]
[1717041308760,2.1743,170.17,170.08,2.1754]
[1717041308942,2.1743,170.17,170.09,7.47]
[1717041311045,2.1743,170.17,170.08,9.6454]
[1717041311363,2.1744,170.16,170.08,9.6454]
[1717041311862,2.1743,170.17,170.08,9.6454]
[1717041312670,2.1743,170.17,170.09,7.47]
[1717041313447,2.1743,170.17,170.1,7.47]
[1717041317285,16.6606,170.21,170.14,7.47]
[1717041317465,26.3044,170.21,170.12,2.1748]
[1717041319860,18.8344,170.21,170.12,2.1749]
[1717041320056,2.1739,170.2,170.12,9.6449]
[1717041320879,2.1739,170.2,170.11,2.175]
[1717041321184,2.1739,170.2,170.12,7.47]
[1717041323667,2.1739,170.2,170.12,9.6449]
[1717041324190,2.1739,170.2,170.11,2.175]
[1717041324388,2.174,170.19,170.11,2.175]
[1717041324586,2.1739,170.2,170.12,2.1749]
[1717041325292,2.1739,170.2,170.1,7.47]
[1717041325475,21.0082,170.21,170.09,2.1752]
[1717041325680,8.1942,170.18,170.09,2.1753]
[1717041326086,8.1942,170.18,170.1,2.1751]
[1717041326699,7.47,170.15,170.09,9.6452]
[1717041327995,7.47,170.15,170.08,2.1754]
[1717041328183,7.47,170.15,170.09,7.47]
[1717041329194,7.47,170.15,170.09,9.6452]
[1717041331299,7.47,170.15,170.1,2.1751]
[1717041331779,8.1942,170.18,170.1,9.6451]
[1717041332481,8.1942,170.18,170.1,7.47]
[1717041334192,8.1942,170.18,170.1,9.6451]
[1717041334596,8.1942,170.18,170.1,7.47]
[1717041335899,2.1743,170.17,170.1,7.47]
[1717041341614,2.1743,170.17,170.1,9.6451]
[1717041341987,8.1942,170.18,170.1,9.6451]
[1717041343415,8.1941,170.18,170.11,7.47]
[1717041343617,8.1941,170.18,170.12,7.47]
[1717041344595,6.02,170.18,170.12,7.47]
[1717041345688,6.02,170.18,170.12,9.6448]
[1717041345893,16.6606,170.21,170.14,7.47]
[1717041347500,18.8343,170.21,170.13,2.1747]
[1717041349013,16.6606,170.21,170.13,2.1747]
[1717041349310,16.6606,170.21,170.14,2.1746]
[1717041351028,14.1221,170.22,170.16,7.47]
[1717041351199,6.6521,170.22,170.18,7.47]
[1717041354019,17.211,170.25,170.18,7.47]
[1717041354526,7.47,170.24,170.18,7.47]
[1717041355325,17.2109,170.25,170.18,7.47]
[1717041355706,15.0377,170.25,170.19,7.47]
[1717041355908,15.0377,170.25,170.18,7.47]
[1717041356315,15.0377,170.25,170.18,9.6441]
[1717041357029,15.0377,170.25,170.19,7.47]
[1717041357721,17.2109,170.25,170.18,7.47]
[1717041357928,15.0377,170.25,170.18,9.6441]
[1717041358116,15.0377,170.25,170.2,7.47]
[1717041358629,8.2403,170.26,170.2,7.47]
[1717041360134,6.0671,170.26,170.2,7.47]
[1717041360619,6.0671,170.26,170.19,2.174]
[1717041360823,6.0671,170.26,170.19,9.644]
[1717041364208,6.0671,170.26,170.2,9.6438]
[1717041364407,6.0671,170.26,170.2,2.1738]
[1717041364608,6.0671,170.26,170.2,9.6438]
[1717041366720,6.0671,170.26,170.2,2.1738]
[1717041366922,6.0671,170.26,170.2,9.6438]
[1717041370014,6.0671,170.26,170.21,2.1737]
[1717041370215,17.7252,170.29,170.22,2.1736]
[1717041370713,17.7252,170.29,170.21,9.6437]
[1717041370920,2.1729,170.28,170.21,9.6437]
[1717041372831,2.1729,170.28,170.22,7.47]
[1717041373839,2.1729,170.28,170.21,2.1737]
[1717041374019,2.1729,170.28,170.21,9.6437]
[1717041375235,2.1729,170.28,170.21,2.1737]
[1717041375428,2.173,170.27,170.21,2.1737]
[1717041375621,2.173,170.27,170.2,9.6438]
[1717041375833,2.173,170.27,170.2,2.1738]
[1717041376217,2.1729,170.28,170.21,2.1737]
[1717041376632,2.173,170.27,170.21,2.1737]
[1717041376813,2.173,170.27,170.2,2.1738]
[1717041377641,2.173,170.27,170.21,2.1737]
[1717041378439,2.173,170.27,170.2,2.1738]
[1717041379139,2.1732,170.26,170.19,2.174]
[1717041379338,2.1733,170.25,170.19,2.174]
[1717041379632,2.1733,170.25,170.18,2.1741]
[1717041379845,7.47,170.23,170.18,2.1741]
[1717041381238,6.3241,170.23,170.17,2.1742]
[1717041381431,7.47,170.21,170.17,2.1742]
[1717041382839,8.4976,170.23,170.17,2.1742]
[1717041383427,8.4976,170.23,170.16,2.1743]
[1717041383634,2.1736,170.22,170.16,2.1743]
[1717041385356,8.4976,170.23,170.16,2.1743]
[1717041385523,8.4976,170.23,170.17,2.1742]
[1717041386146,6.3241,170.23,170.17,2.1742]
[1717041386339,6.3241,170.23,170.17,9.6442]
[1717041388241,8.4976,170.23,170.17,9.6442]
[1717041389046,6.3241,170.23,170.17,9.6442]
[1717041390164,8.4976,170.23,170.17,9.6442]
[1717041390336,2.1735,170.23,170.17,9.6442]
[1717041391435,2.1735,170.23,170.17,7.47]
[1717041392558,2.1735,170.23,170.17,9.6442]
[1717041393939,2.1735,170.23,170.17,7.47]
[1717041394257,2.1735,170.23,170.17,9.6442]
[1717041394777,6.4547,170.22,170.16,2.1744]
[1717041395563,8.6284,170.22,170.16,2.1744]
[1717041396368,8.6284,170.22,170.15,9.6445]
[1717041397064,8.6284,170.22,170.16,2.1744]
[1717041398146,2.1738,170.21,170.15,2.1745]
[1717041398345,2.1738,170.21,170.15,9.6445]
[1717041398887,2.1738,170.21,170.15,2.1745]
[1717041399983,6.4547,170.22,170.13,2.1747]
[1717041400144,2.1741,170.19,170.12,9.6448]
[1717041400343,2.1741,170.18,170.11,9.6449]
[1717041400565,2.1741,170.18,170.12,2.1748]
[1717041401570,2.174,170.19,170.13,2.1747]
[1717041402153,2.1739,170.2,170.14,2.1746]
[1717041404971,2.1738,170.21,170.14,2.1746]
[1717041405674,2.1739,170.2,170.14,2.1746]
[1717041406026,6.4547,170.22,170.16,2.1743]
[1717041406295,17.00733042,170.27,170.19,7.47]
[1717041406296,8.4167,170.26,170.19,7.47]
[1717041406459,8.4167,170.26,170.2,7.47]
[1717041406460,6.2436,170.26,170.2,7.47]
[1717041406792,18.1289,170.27,170.21,9.6437]
[1717041406793,7.47,170.27,170.21,9.6437]
[1717041407158,2.1729,170.28,170.21,2.1737]
[1717041407372,6.4749,170.3,170.22,7.47]
[1717041407588,6.4749,170.3,170.23,7.47]
[1717041407777,6.4749,170.3,170.24,7.47]
[1717041408590,6.4749,170.3,170.24,9.6433]
[1717041409476,6.4749,170.3,170.24,7.47]
[1717041409990,6.4749,170.3,170.2,17.69]
[1717041409991,2.1728,170.29,170.22,2.1736]
[1717041410196,9.6428,170.29,170.22,2.1736]
[1717041410581,7.47,170.29,170.22,2.1736]
[1717041410779,7.47,170.29,170.23,7.47]
[1717041410989,8.6475,170.3,170.23,7.47]
[1717041411897,2.1729,170.28,170.21,2.1737]
[1717041412109,6.4749,170.3,170.19,2.1739]
[1717041412478,2.1732,170.26,170.19,2.1739]
[1717041412782,2.1733,170.25,170.17,2.1741]
[1717041412987,2.1733,170.25,170.17,7.47]
[1717041413491,2.1733,170.25,170.15,24.3237]
[1717041413703,2.1733,170.25,170.17,7.47]
[1717041414503,2.1733,170.25,170.18,2.1741]
[1717041416002,2.1731,170.27,170.19,2.1739]
[1717041416187,2.1731,170.27,170.18,7.47]
[1717041416384,2.1731,170.27,170.15,24.3237]
[1717041416385,2.1731,170.27,170.2,2.1738]
[1717041417202,16.95576314,170.29,170.2,7.47]
[1717041417415,16.95576314,170.29,170.16,4.3487]
[1717041417416,102.89675091,170.32,170.21,1.25751092]
[1717041417607,2.1722,170.33,170.25,2.1731]
[1717041417805,7.47,170.3,170.25,2.1731]
[1717041418103,7.47,170.3,170.24,9.6433]
[1717041418282,2.1724,170.32,170.24,9.6433]
[1717041418980,7.47,170.27,170.21,2.1736]
[1717041419202,16.95316539,170.33,170.22,2.1736]
[1717041419400,7.47,170.28,170.23,2.1735]
[1717041419593,2.1727,170.3,170.22,2.1736]
[1717041420691,23.3509581,170.34,170.22,2.1736]
[1717041421035,2.1728,170.28,170.21,2.1737]
[1717041421895,7.47,170.25,170.21,2.1737]
[1717041422612,2.1727,170.29,170.21,2.1737]
[1717041423112,2.1727,170.29,170.22,2.1736]
[1717041424014,2.1727,170.29,170.2,7.47]
[1717041424015,2.173,170.27,170.2,2.1739]
[1717041424411,2.173,170.27,170.18,7.47]
[1717041424412,15.9453,170.29,170.21,2.1737]
[1717041424719,7.47,170.25,170.21,2.1737]
[1717041426714,2.1729,170.28,170.21,2.1737]
[1717041426909,18.118,170.29,170.22,2.1736]
[1717041427517,15.9453,170.29,170.23,2.1735]
[1717041427721,18.118,170.29,170.22,2.1736]
[1717041428209,7.47,170.28,170.23,2.1735]
[1717041428901,7.47,170.28,170.24,2.1733]
[1717041429324,2.1726,170.3,170.24,2.1733]
[1717041429524,17.7876,170.33,170.26,2.173]
[1717041429814,7.2944837,170.31,170.26,2.173]
[1717041430032,2.1723,170.32,170.26,2.173]
[1717041430217,17.7876,170.33,170.26,9.643]
[1717041430406,7.47,170.31,170.26,2.173]
[1717041430605,2.1724,170.32,170.25,2.1732]
[1717041430922,2.1724,170.32,170.25,9.6432]
[1717041431098,2.1724,170.32,170.26,9.6431]
[1717041431297,2.1722,170.33,170.26,9.6431]
[1717041431509,7.47,170.31,170.26,9.6431]
[1717041432026,7.47,170.31,170.25,2.1732]
[1717041432201,2.1723,170.32,170.25,2.1732]
[1717041432404,9.6426,170.3,170.24,2.1733]
[1717041432706,2.1726,170.3,170.23,2.1735]
[1717041433318,2.1726,170.3,170.24,2.1733]
[1717041434027,2.1726,170.3,170.23,2.1735]
[1717041435627,2.1726,170.3,170.24,2.1733]
[1717041438032,2.1728,170.29,170.23,2.1734]
[1717041438835,2.1726,170.3,170.23,2.1734]
[1717041440135,2.1726,170.3,170.23,9.6434]
[1717041440740,2.1726,170.3,170.24,2.1733]
[1717041440942,2.1725,170.31,170.24,2.1733]
[1717041441551,2.1726,170.3,170.24,2.1733]
[1717041443233,7.47,170.36,170.25,17.69]
[1717041443424,7.47,170.33,170.28,2.1728]
[1717041444326,7.47,170.32,170.24,28.6416]
[1717041444528,7.47,170.32,170.27,2.1729]
[1717041446323,2.1722,170.33,170.26,2.1731]
[1717041446736,2.1722,170.33,170.26,9.6431]
[1717041446935,2.1722,170.33,170.27,2.1729]
[1717041448250,2.1724,170.32,170.24,6.605]
[1717041448425,2.1724,170.32,170.25,7.47]
[1717041448626,2.1722,170.33,170.26,2.1731]
[1717041449755,2.1722,170.33,170.27,2.173]
[1717041455549,6.4178,170.33,170.21,4.3473]
[1717041455748,7.47,170.26,170.21,4.3473]
[1717041456054,7.47,170.26,170.2,14.0644]
[1717041456055,7.47,170.26,170.23,2.1734]
[1717041456553,6.13970139,170.32,170.24,6.5439]
[1717041456845,7.47,170.32,170.26,9.6431]
[1717041457441,7.47,170.32,170.26,2.1731]
[1717041457647,2.1721,170.34,170.26,7.47]
[1717041457850,2.1721,170.34,170.27,7.47]
[1717041458038,2.1721,170.34,170.28,2.1728]
[1717041458433,8.2985,170.36,170.27,7.47]
[1717041458643,7.47,170.33,170.27,7.47]
[1717041458852,7.47,170.33,170.29,2.1726]
[1717041459233,8.2985,170.36,170.29,2.1726]
[1717041459743,7.47,170.33,170.29,2.1726]
[1717041463643,2.172,170.35,170.29,2.1726]
[1717041466752,7.47,170.32,170.29,2.1726]
[1717041467255,7.47,170.32,170.26,7.47]
[1717041467447,6.1266,170.36,170.24,6.5439]
[1717041467656,2.1723,170.33,170.27,2.173]
[1717041468644,2.1723,170.33,170.28,2.1728]
[1717041468838,23.07503692,170.36,170.28,2.1728]
[1717041468839,2.1721,170.34,170.28,2.1728]
[1717041469962,2.1722,170.33,170.28,2.1728]
[1717041470366,7.47,170.31,170.27,2.1729]
[1717041472960,2.1723,170.32,170.26,2.1731]
[1717041473157,2.1725,170.31,170.24,14.0139]
[1717041473857,7.47,170.29,170.24,6.5439]
[1717041474442,7.47,170.29,170.26,2.1731]
[1717041475372,7.47,170.27,170.22,2.1736]
[1717041475669,2.1727,170.29,170.23,2.1735]
[1717041476264,2.1727,170.29,170.24,2.1733]
[1717041476473,2.1727,170.29,170.23,2.1735]
[1717041476676,2.1729,170.28,170.23,2.1735]
[1717041476972,2.1727,170.29,170.23,2.1735]
[1717041477766,2.1729,170.28,170.23,2.1735]
[1717041478458,21.29516983,170.32,170.23,2.1735]
[1717041479382,2.1728,170.28,170.23,2.1735]
[1717041479565,2.1728,170.28,170.22,2.1736]
[1717041480262,2.1728,170.28,170.23,2.1735]
[1717041480676,2.1727,170.29,170.22,7.47]
[1717041480856,2.1727,170.29,170.24,2.1733]
[1717041481177,7.47,170.27,170.23,2.1734]
[1717041481553,7.47,170.27,170.22,7.47]
[1717041482369,7.47,170.27,170.23,2.1735]
[1717041492670,7.47,170.27,170.22,2.1736]
[1717041494384,9.643,170.27,170.22,2.1736]
[1717041494572,2.1731,170.27,170.19,6.0936]
[1717041494883,2.1731,170.26,170.21,2.1737]
[1717041495180,2.1732,170.25,170.2,2.1738]
[1717041495689,2.1731,170.26,170.2,2.1738]
[1717041496154,4.3458,170.28,170.18,2.174]
[1717041496354,4.3461,170.27,170.18,2.174]
[1717041496570,2.1734,170.24,170.18,2.174]
[1717041496957,2.1733,170.25,170.19,2.1739]
[1717041497157,4.3461,170.27,170.19,2.1739]
[1717041497158,2.1734,170.24,170.19,2.1739]
[1717041498075,2.1734,170.24,170.16,7.47]
[1717041498076,2.1736,170.22,170.16,2.1743]
[1717041498284,2.1736,170.22,170.16,2.1744]
[1717041499875,2.1736,170.22,170.17,2.1742]
[1717041500583,2.1735,170.23,170.17,2.1742]
[1717041502069,2.1736,170.22,170.17,2.1742]
[1717041502263,2.1738,170.21,170.12,23.06248127]
[1717041502465,7.47,170.2,170.15,2.1744]
[1717041503790,2.1738,170.21,170.15,2.1744]
[1717041505587,2.1739,170.2,170.15,2.1744]
[1717041505768,7.47,170.18,170.15,2.1744]
[1717041506486,7.47,170.18,170.14,2.1746]
[1717041510687,7.47,170.18,170.15,2.1745]
[1717041512901,6.69328364,170.18,170.15,2.1745]
[1717041521004,2.1741,170.19,170.1,4.6640631]
[1717041521185,2.1738,170.21,170.15,2.1744]
[1717041521388,7.47,170.18,170.15,2.1744]
[1717041522801,7.47,170.18,170.14,2.1746]
[1717041523505,7.47,170.18,170.13,2.1747]
[1717041523808,2.174,170.19,170.13,2.1747]
[1717041524592,2.1742,170.18,170.13,2.1747]
[1717041525312,2.1742,170.18,170.12,2.1748]
[1717041525883,2.1743,170.17,170.12,2.1748]
[1717041526199,2.1744,170.16,170.06,19.5808]
[1717041526400,2.1744,170.16,170.09,7.47]
[1717041526597,2.1743,170.17,170.11,2.1749]
[1717041526801,2.1744,170.16,170.11,2.1749]
[1717041527114,2.1743,170.17,170.11,2.1749]
[1717041527499,2.1743,170.17,170.12,2.1749]
[1717041527812,2.1744,170.16,170.11,2.175]
[1717041530589,2.1744,170.16,170.1,2.1751]
[1717041532407,19.9725,170.18,170.07,4.63394557]
[1717041532713,2.1745,170.15,170.09,2.1752]
[1717041532908,2.1745,170.15,170.1,2.1751]
[1717041533115,2.1744,170.16,170.1,2.1751]
[1717041539529,2.1743,170.17,170.11,2.175]
[1717041539827,7.47,170.15,170.11,2.175]
[1717041540591,8.6463,170.16,170.09,7.47]
[1717041540788,6.4719,170.16,170.11,2.175]
[1717041541396,8.6464,170.16,170.08,7.47]
[1717041541595,6.4719,170.16,170.11,2.175]
[1717041542007,8.6463,170.16,170.1,2.1751]
[1717041542316,2.1745,170.15,170.1,2.1751]
[1717041542620,8.6463,170.16,170.1,2.1751]
[1717041542922,6.4719,170.16,170.1,7.47]
[1717041543090,19.1361111,170.18,170.12,2.1748]
[1717041543298,7.47,170.17,170.12,2.1748]
[1717041545206,2.1742,170.18,170.12,2.1748]
[1717041545606,2.1742,170.18,170.13,2.1748]
[1717041546534,8.5594,170.2,170.13,2.1748]
[1717041546703,2.174,170.19,170.13,2.1748]
[1717041547536,2.1742,170.18,170.12,2.1749]
[1717041547842,16.96002397,170.19,170.14,2.1746]
[1717041548130,2.174,170.19,170.13,2.1747]
[1717041549718,2.1741,170.18,170.13,2.1747]
[1717041549909,2.1741,170.18,170.12,2.1748]
[1717041550818,2.1743,170.17,170.12,2.1748]
[1717041551024,2.1743,170.17,170.11,2.175]
[1717041552537,2.1743,170.17,170.12,2.1749]
[1717041555332,2.1744,170.16,170.11,2.175]
[1717041555813,2.1743,170.17,170.11,2.175]
[1717041556224,6.3854,170.2,170.11,2.175]
[1717041556721,2.1743,170.17,170.11,2.175]
[1717041558549,2.1744,170.16,170.1,2.1751]
[1717041563950,2.1744,170.16,170.11,2.175]
[1717041565228,19.13615944,170.17,170.11,2.175]
[1717041565428,2.1743,170.17,170.11,2.175]
[1717041567756,2.1744,170.16,170.11,2.175]
[1717041568247,2.1743,170.17,170.12,2.1749]
[1717041568651,2.1741,170.18,170.12,2.1749]
[1717041569153,19.13557399,170.18,170.12,2.1749]
[1717041569365,2.1743,170.17,170.11,9.645]
[1717041569529,2.1743,170.17,170.12,2.1748]
[1717041569729,2.1742,170.18,170.11,7.47]
[1717041570442,2.1742,170.18,170.12,2.1748]
[1717041574154,6.3854,170.2,170.11,7.47]
[1717041574454,4.3481,170.19,170.1,2.1751]
[1717041574668,21.30890619,170.19,170.1,2.1751]
[1717041574831,2.1745,170.15,170.1,2.1751]
[1717041576063,2.1744,170.16,170.1,2.1751]
[1717041578674,2.1745,170.15,170.1,2.1751]
[1717041580243,2.1744,170.16,170.1,2.1751]
[1717041580544,2.1744,170.16,170.11,2.175]
[1717041581066,2.1744,170.16,170.1,2.1751]
[1717041583168,2.1745,170.15,170.09,2.1752]
[1717041583354,2.1746,170.14,170.09,2.1752]
[1717041583967,2.1745,170.15,170.09,2.1752]
[1717041585272,2.1747,170.14,170.08,2.1754]
[1717041587372,2.1746,170.15,170.09,2.1752]
[1717041587746,2.1746,170.15,170.1,2.1751]
[1717041589370,2.1746,170.15,170.08,7.47]
[1717041589575,2.1746,170.15,170.09,2.1752]
[1717041590273,2.1746,170.14,170.08,9.6454]
[1717041590886,2.1746,170.14,170.08,2.1754]
[1717041592755,2.1745,170.15,170.09,2.1753]
[1717041594970,2.1744,170.16,170.1,2.1751]
[1717041595869,23.48310619,170.19,170.1,2.1751]
[1717041595870,2.1745,170.15,170.1,2.1751]
[1717041597172,16.96080619,170.18,170.11,2.175]
[1717041597173,2.1743,170.17,170.11,2.175]
[1717041597361,2.1742,170.18,170.12,2.1748]
[1717041597560,7.47,170.16,170.12,2.1748]
[1717041598065,24.43080619,170.16,170.12,2.1748]
[1717041598375,7.47,170.16,170.12,2.1748]
[1717041598975,19.13482154,170.19,170.14,2.1746]
[1717041599278,16.96082154,170.18,170.13,2.1747]
[1717041599474,2.174,170.19,170.13,2.1747]
[1717041599679,16.96082154,170.17,170.13,2.1747]
[1717041599872,2.1741,170.18,170.13,2.1747]
[1717041600257,16.96082154,170.21,170.15,2.1745]
[1717041600661,16.96082154,170.22,170.16,7.47]
[1717041600985,2.1738,170.21,170.15,9.6445]
[1717041601278,2.1738,170.21,170.15,2.1745]
[1717041601492,10.9448,170.24,170.15,7.47]
[1717041601674,2.1737,170.22,170.16,9.6444]
[1717041602481,29.36570213,170.27,170.19,2.1739]
[1717041602787,7.47,170.24,170.19,2.1739]
[1717041603986,20.1026,170.27,170.16,2.1743]
[1717041604167,2.1739,170.2,170.14,7.47]
[1717041604369,2.1739,170.2,170.13,6.1958]
[1717041604370,7.47,170.19,170.13,13.6658]
[1717041604569,13.8913,170.28,170.13,13.6658]
[1717041604570,7.47,170.3,170.16,13.9448]
[1717041604771,95.14754627,170.33,170.22,9.6436]
[1717041604772,2.1728,170.29,170.22,9.6436]
[1717041604971,6.0896,170.34,170.23,7.47]
[1717041605290,6.0896,170.34,170.2,17.69]
[1717041605291,9.6426,170.3,170.24,9.6433]
[1717041605478,2.1726,170.3,170.24,2.1733]
[1717041605687,7.47,170.29,170.23,9.6435]
[1717041606066,6.13937982,170.3,170.24,8.2281]
[1717041606377,2.1724,170.32,170.25,9.6432]
[1717041607587,8.2617,170.34,170.25,7.47]
[1717041607788,8.2617,170.34,170.27,2.1729]
[1717041608083,2.1723,170.33,170.26,2.1731]
[1717041608666,7.47,170.31,170.26,2.1731]
[1717041609199,6.5153,170.37,170.26,2.1731]
[1717041609200,10.7013,170.38,170.28,2.1728]
[1717041609370,2.1719,170.35,170.28,2.1728]
[1717041609571,2.1718,170.36,170.29,2.1727]
[1717041610170,7.47,170.33,170.28,2.1728]
[1717041610399,2.172,170.35,170.28,2.1728]
[1717041610894,2.1721,170.34,170.27,2.1729]
[1717041611072,7.47,170.31,170.27,2.1729]
[1717041612765,7.47,170.31,170.26,6.5368]
[1717041612999,2.1722,170.33,170.26,6.5368]
[1717041613575,21.5597,170.38,170.22,15.2442]
[1717041613790,4.344,170.35,170.25,2.1732]
[1717041614090,7.47,170.26,170.22,6.5496]
[1717041615388,2.1728,170.28,170.22,2.1736]
[1717041615972,2.1728,170.29,170.22,2.1736]
[1717041616270,4.3447,170.32,170.22,2.1736]
[1717041616271,2.1728,170.28,170.22,2.1736]
[1717041617573,2.1727,170.3,170.23,2.1734]
[1717041617773,2.1727,170.3,170.24,2.1733]
[1717041617975,13.0323,170.35,170.25,2.1732]